bitfinex-derivatives/quotes_BTCF0:USTF0_20250325
["timestamp","ask_amount","ask_price","bid_price","bid_amount"]
[1742894487540,0.03365473,86925.0,86924.0,0.1167205]
[1742894488447,0.03297473,86925.0,86924.0,0.1167205]
[1742894488846,0.14861414,86925.0,86924.0,0.00168]
[1742894489036,0.14801413,86925.0,86924.0,0.1167207]
[1742894489240,0.14873413,86925.0,86924.0,0.1167207]
[1742894489440,0.14873413,86925.0,86924.0,0.00168]
[1742894489644,0.14873413,86925.0,86924.0,0.1167207]
[1742894491758,0.14873413,86925.0,86924.0,0.1157207]
[1742894492850,0.14873413,86925.0,86924.0,0.1167207]
[1742894494355,0.03369473,86925.0,86924.0,0.1167207]
[1742894494542,0.03297473,86925.0,86924.0,0.1167207]
[1742894494746,0.03297473,86925.0,86924.0,0.1482207]
[1742894494949,0.14801413,86925.0,86924.0,0.1783207]
[1742894496258,0.18069413,86925.0,86924.0,0.1783207]
[1742894496953,0.03365473,86925.0,86924.0,0.1783207]
[1742894497161,0.14801413,86925.0,86924.0,0.1783207]
[1742894497548,0.03297473,86925.0,86924.0,1.6783207]
[1742894498455,0.00157473,86925.0,86924.0,2.0491207]
[1742894498642,0.00157473,86925.0,86924.0,2.0591207]
[1742894502448,0.00157473,86925.0,86924.0,2.0904207]
[1742894503152,0.00157473,86925.0,86924.0,2.10509094]
[1742894504150,0.00157473,86925.0,86924.0,2.1050922]
[1742894504462,0.00157473,86925.0,86924.0,2.0904207]
[1742894504957,0.00157473,86925.0,86924.0,2.2013007]
[1742894505158,0.00157473,86925.0,86924.0,2.21591851]
[1742894505950,0.00157473,86925.0,86924.0,2.10503851]
[1742894506156,0.00157473,86925.0,86924.0,2.21607851]
[1742894506355,0.00157473,86925.0,86924.0,2.49114101]
[1742894506754,0.00157473,86925.0,86924.0,2.38010101]
[1742894507059,0.00157473,86925.0,86924.0,2.49120993]
[1742894507260,0.00157473,86925.0,86924.0,2.4765232]
[1742894508764,8e-05,86927.0,86926.0,0.115038]
[1742894508962,8e-05,86927.0,86926.0,0.465798]
[1742894509155,8e-05,86927.0,86926.0,0.51252431]
[1742894509359,0.00017151,86933.0,86932.0,0.1150301]
[1742894509552,0.00017151,86933.0,86932.0,0.53113641]
[1742894509750,0.00017151,86933.0,86932.0,0.56323641]
[1742894509955,0.00017151,86933.0,86932.0,2.06323641]
[1742894510371,0.00017151,86933.0,86932.0,2.42113641]
[1742894510664,0.0309,86948.0,86932.0,2.42113641]
[1742894510665,0.031,86951.0,86950.0,0.1150063]
[1742894510964,0.031,86951.0,86950.0,0.1485863]
[1742894510965,0.03168,86951.0,86950.0,0.1485863]
[1742894511553,0.0004,86952.0,86951.0,0.115005]
[1742894511757,0.1154036,86952.0,86951.0,0.115725]
[1742894511953,0.00108,86952.0,86951.0,0.115725]
[1742894512157,0.00108,86952.0,86951.0,0.148625]
[1742894512158,0.0004,86952.0,86951.0,0.148625]
[1742894512357,0.00104,86952.0,86951.0,0.148625]
[1742894512567,0.0004,86952.0,86951.0,0.15989133]
[1742894512865,0.11697774,86952.0,86951.0,0.12699133]
[1742894513265,0.11765774,86952.0,86951.0,0.12699133]
[1742894513866,0.18034924,86952.0,86951.0,0.12699133]
[1742894514061,0.18034924,86952.0,86951.0,0.15849133]
[1742894514252,0.18034924,86952.0,86951.0,0.12699133]
[1742894514963,0.18093206,86952.0,86951.0,0.12699133]
[1742894515869,0.18167256,86952.0,86951.0,0.12699133]
[1742894519565,0.18167256,86952.0,86951.0,0.15989133]
[1742894519766,0.18167256,86952.0,86951.0,0.19099133]
[1742894521260,0.1777836,86952.0,86951.0,0.19099133]
[1742894521464,0.18266498,86952.0,86951.0,0.19099133]
[1742894522473,0.18324533,86952.0,86951.0,0.19099133]
[1742894523879,0.06824173,86952.0,86951.0,0.19099133]
[1742894524083,0.06756173,86952.0,86951.0,0.19099133]
[1742894524272,0.06824173,86952.0,86951.0,0.19099133]
[1742894524474,0.00654173,86952.0,86951.0,0.55179133]
[1742894524781,0.00586173,86952.0,86951.0,0.56179133]
[1742894525485,0.00586173,86952.0,86951.0,2.06179133]
[1742894526076,0.00586173,86952.0,86951.0,0.56179133]
[1742894526583,0.03774173,86952.0,86951.0,0.56179133]
[1742894526778,0.03706173,86952.0,86951.0,0.56179133]
[1742894527384,0.03782173,86952.0,86951.0,0.56179133]
[1742894527782,0.00586173,86952.0,86951.0,0.56179133]
[1742894528479,0.03866173,86952.0,86951.0,0.56179133]
[1742894528784,0.07121523,86952.0,86951.0,0.56179133]
[1742894528986,0.07045523,86952.0,86951.0,0.56179133]
[1742894529981,0.0710345,86952.0,86951.0,0.56179133]
[1742894530384,0.0402345,86952.0,86951.0,0.56179133]
[1742894532080,0.0074345,86952.0,86951.0,0.20099133]
[1742894532688,0.0074345,86952.0,86951.0,0.56179133]
[1742894533077,0.0074345,86952.0,86951.0,0.56279133]
[1742894533974,0.0074345,86952.0,86951.0,2.06279133]
[1742894535791,0.0084266,86952.0,86951.0,2.06279133]
[1742894536690,0.00900727,86952.0,86951.0,2.06279133]
[1742894536888,0.00900727,86952.0,86951.0,0.56279133]
[1742894537080,0.00900727,86952.0,86951.0,0.67347133]
[1742894537487,0.04090727,86952.0,86951.0,0.67347133]
[1742894540286,0.00900727,86952.0,86951.0,0.67347133]
[1742894542194,0.00900727,86952.0,86951.0,0.67339133]
[1742894542386,0.00900727,86952.0,86951.0,0.31259133]
[1742894542586,0.03910727,86952.0,86951.0,0.31259133]
[1742894542787,0.06990727,86952.0,86951.0,0.31259133]
[1742894542990,0.06990727,86952.0,86951.0,0.20199133]
[1742894543591,0.21990727,86952.0,86951.0,0.01172]
[1742894543885,0.1150155,86943.0,86942.0,0.00017254]
[1742894544081,0.5870955,86943.0,86942.0,0.00085254]
[1742894544279,0.6504955,86943.0,86942.0,0.00085254]
[1742894544592,0.65910277,86943.0,86942.0,0.00085254]
[1742894545585,0.65910277,86943.0,86942.0,0.11586944]
[1742894546691,0.69110277,86943.0,86942.0,0.11586944]
[1742894547097,0.69118277,86943.0,86942.0,0.11586944]
[1742894547487,0.69118277,86943.0,86942.0,0.11686944]
[1742894548197,0.46548727,86943.0,86942.0,0.11686944]
[1742894548394,0.43348727,86943.0,86942.0,0.14776944]
[1742894548591,0.07268727,86943.0,86942.0,0.20916944]
[1742894548790,0.00928727,86943.0,86942.0,0.20916944]
[1742894548988,0.00860727,86943.0,86942.0,0.20816944]
[1742894549187,0.00860727,86943.0,86942.0,0.20916944]
[1742894549390,0.00860727,86943.0,86942.0,1.70916944]
[1742894549790,0.00860727,86943.0,86942.0,1.71016944]
[1742894550190,0.00860727,86943.0,86942.0,1.72016944]
[1742894550391,0.00860727,86943.0,86942.0,1.72116944]
[1742894551198,0.00860727,86943.0,86942.0,1.72416944]
[1742894556508,0.12362277,86943.0,86942.0,0.00685254]
[1742894556693,0.21614277,86943.0,86942.0,0.00617254]
[1742894557097,0.21614277,86943.0,86942.0,0.12118944]
[1742894557307,0.21614277,86943.0,86942.0,0.12186944]
[1742894557605,0.21614277,86943.0,86942.0,0.00385254]
[1742894557805,0.21614277,86943.0,86942.0,0.00485254]
[1742894558501,0.21614277,86943.0,86942.0,0.00217254]
[1742894558707,0.21614277,86943.0,86942.0,0.11718944]
[1742894558910,0.21614277,86943.0,86942.0,0.11778944]
[1742894560607,0.10112727,86943.0,86942.0,0.11778944]
[1742894560810,0.21614277,86943.0,86942.0,0.15068944]
[1742894563404,0.21614277,86943.0,86942.0,0.11778944]
[1742894563610,0.21614277,86943.0,86942.0,0.00277254]
[1742894563808,0.21614277,86943.0,86942.0,0.00217254]
[1742894564899,0.0575184,86927.0,86926.0,0.115037]
[1742894565106,0.1725504,86932.0,86931.0,0.0575157]
[1742894565297,0.1732704,86932.0,86931.0,0.00072]
[1742894565497,0.2671704,86932.0,86931.0,0.00072]
[1742894565698,0.27577767,86932.0,86931.0,0.1157514]
[1742894566403,0.27577767,86932.0,86931.0,0.00372]
[1742894566607,0.27577767,86932.0,86931.0,0.003]
[1742894566809,0.27577767,86932.0,86931.0,0.1507314]
[1742894567210,0.27577767,86932.0,86931.0,0.0377]
[1742894567413,0.38633767,86932.0,86931.0,0.0377]
[1742894567611,0.38633767,86932.0,86931.0,0.0056]
[1742894567803,0.38633767,86932.0,86931.0,0.005]
[1742894568211,0.1150407,86924.0,86919.0,0.0321]
[1742894568511,0.4765207,86924.0,86923.0,0.00077254]
[1742894568710,0.55112797,86924.0,86923.0,0.00077254]
[1742894569215,0.55112797,86924.0,86923.0,0.00017254]
[1742894569512,0.55112797,86924.0,86923.0,0.00817254]
[1742894569715,0.55112797,86924.0,86923.0,0.00877254]
[1742894570920,0.55112797,86924.0,86923.0,0.12321454]
[1742894571120,0.55112797,86924.0,86923.0,0.12381454]
[1742894571616,0.55112797,86924.0,86923.0,0.07097254]
[1742894573415,0.66176797,86924.0,86923.0,0.07097254]
[1742894573617,0.66176797,86924.0,86923.0,0.07037254]
[1742894573817,0.66176797,86924.0,86923.0,0.18609454]
[1742894574117,0.66176797,86924.0,86923.0,0.07105254]
[1742894574718,0.66176797,86924.0,86923.0,0.10385254]
[1742894575309,0.66176797,86924.0,86923.0,0.10317254]
[1742894575510,0.66176797,86924.0,86923.0,0.10377254]
[1742894575713,0.66176797,86924.0,86923.0,0.07037254]
[1742894576014,0.66176797,86924.0,86923.0,0.03937254]
[1742894576414,0.66176797,86924.0,86923.0,0.04005254]
[1742894577213,0.66177984,86924.0,86923.0,0.04005254]
[1742894579622,0.66177984,86924.0,86923.0,0.03937254]
[1742894580123,0.66177984,86924.0,86923.0,0.04005254]
[1742894580528,0.66177984,86924.0,86923.0,0.03937254]
[1742894580711,0.66177984,86924.0,86923.0,0.03997254]
[1742894580911,0.66177984,86924.0,86923.0,0.03937254]
[1742894581127,0.66177984,86924.0,86923.0,0.00817254]
[1742894583315,0.55113984,86924.0,86923.0,0.00817254]
[1742894583517,0.48513984,86924.0,86923.0,0.00817254]
[1742894583718,0.12433984,86924.0,86923.0,0.21811454]
[1742894584026,0.12433984,86924.0,86923.0,0.21883454]
[1742894584926,0.48513984,86924.0,86923.0,0.21883454]
[1742894595616,0.48513984,86924.0,86923.0,0.10379254]
[1742894595822,0.48513984,86924.0,86923.0,0.21883454]
[1742894596025,0.51673984,86924.0,86923.0,0.10379254]
[1742894596219,0.54853984,86924.0,86923.0,0.10379254]
[1742894596422,0.54853984,86924.0,86923.0,0.07147254]
[1742894596628,0.54853984,86924.0,86923.0,0.07215254]
[1742894596831,0.54853984,86924.0,86923.0,0.07147254]
[1742894597029,0.54853984,86924.0,86923.0,0.00817254]
[1742894603135,0.51673984,86924.0,86923.0,0.00817254]
[1742894603344,0.59601984,86924.0,86923.0,0.12321454]
[1742894603524,0.48513984,86924.0,86923.0,0.12381454]
[1742894603731,0.48513984,86924.0,86923.0,0.22011454]
[1742894606642,0.48513984,86924.0,86923.0,0.10507254]
[1742894606940,0.54663984,86924.0,86923.0,0.07357254]
[1742894607240,0.57763984,86924.0,86923.0,0.04027254]
[1742894608044,0.57763984,86924.0,86923.0,0.03547254]
[1742894608444,0.57763984,86924.0,86923.0,0.00337254]
[1742894611254,0.58924666,86924.0,86923.0,0.00337254]
[1742894611646,0.57763984,86924.0,86923.0,0.00337254]
[1742894615556,0.93843984,86924.0,86923.0,0.00337254]
[1742894616344,0.21683984,86924.0,86923.0,0.00337254]
[1742894616550,0.93843984,86924.0,86923.0,0.00337254]
[1742894620658,0.93843984,86924.0,86923.0,0.11841454]
[1742894620659,0.48513984,86924.0,86923.0,0.11841454]
[1742894620864,0.48513984,86924.0,86923.0,0.11905454]
[1742894621062,0.48513984,86924.0,86923.0,0.21345454]
[1742894622562,0.48513984,86924.0,86923.0,0.22501679]
[1742894624566,0.12433984,86924.0,86923.0,0.22501679]
[1742894624963,0.12433984,86924.0,86923.0,0.21345454]
[1742894627071,0.12433984,86924.0,86923.0,0.22500263]
[1742894636970,0.12433984,86924.0,86923.0,0.09841254]
[1742894637168,0.19033984,86924.0,86923.0,0.09777254]
[1742894637778,0.19033984,86924.0,86923.0,0.09841254]
[1742894638581,0.19033984,86924.0,86923.0,0.21345454]
[1742894638775,0.15713984,86924.0,86923.0,0.09841254]
[1742894639784,0.26765984,86924.0,86923.0,0.09841254]
[1742894643483,0.26765984,86924.0,86923.0,0.21345454]
[1742894643686,0.26765984,86924.0,86923.0,0.09841254]
[1742894644382,0.26765984,86924.0,86923.0,0.10841254]
[1742894646183,0.15713984,86924.0,86923.0,0.10841254]
[1742894646376,0.26769984,86924.0,86923.0,0.10841254]
[1742894647786,0.26769984,86924.0,86923.0,0.22345454]
[1742894648183,0.26769984,86924.0,86923.0,0.10841254]
[1742894648883,0.29859984,86924.0,86923.0,0.10841254]
[1742894649279,0.29859984,86924.0,86923.0,0.22345454]
[1742894649473,0.29899984,86924.0,86923.0,0.22345454]
[1742894649678,0.29899984,86924.0,86923.0,0.10841254]
[1742894649679,0.26809984,86924.0,86923.0,0.10841254]
[1742894649981,0.29899984,86924.0,86923.0,0.10841254]
[1742894656492,0.29899984,86924.0,86923.0,0.10777254]
[1742894656696,0.29899984,86924.0,86923.0,0.10837254]
[1742894658690,0.65979984,86924.0,86923.0,0.10837254]
[1742894659280,0.65979984,86924.0,86923.0,0.07517254]
[1742894659989,0.65979984,86924.0,86923.0,0.07457254]
[1742894660294,0.65979984,86924.0,86923.0,0.07517254]
[1742894662094,0.54883984,86924.0,86923.0,0.07517254]
[1742894662293,0.65991984,86924.0,86923.0,0.07517254]
[1742894663894,0.65987984,86924.0,86923.0,0.07517254]
[1742894664294,0.65987984,86924.0,86923.0,0.08517254]
[1742894665093,0.62897984,86924.0,86923.0,0.08457254]
[1742894665301,0.62897984,86924.0,86923.0,0.08525254]
[1742894665691,0.62897984,86924.0,86923.0,0.20028304]
[1742894666202,0.62897984,86924.0,86923.0,0.08525254]
[1742894666896,0.51793984,86924.0,86923.0,0.08525254]
[1742894667199,0.48513984,86924.0,86923.0,0.20028304]
[1742894667396,0.48513984,86924.0,86923.0,0.08525254]
[1742894668002,0.54753984,86924.0,86923.0,0.08525254]
[1742894668900,0.37009914,86924.0,86923.0,0.20028304]
[1742894669099,0.3608,86941.0,86923.0,0.08525254]
[1742894669305,0.1725291,86934.0,86933.0,0.1150099]
[1742894669492,0.1725291,86934.0,86933.0,0.1350099]
[1742894669692,0.1725291,86934.0,86933.0,0.02072]
[1742894669995,0.1725291,86934.0,86933.0,0.1357373]
[1742894669996,0.1731691,86934.0,86933.0,0.1357373]
[1742894670199,0.1731691,86934.0,86933.0,0.1356973]
[1742894670395,0.1731691,86934.0,86933.0,0.14729052]
[1742894671002,0.1731691,86934.0,86933.0,0.21139052]
[1742894671302,0.1731691,86934.0,86933.0,0.21439052]
[1742894673502,0.1731691,86934.0,86933.0,0.09937322]
[1742894674590,0.1731691,86934.0,86933.0,0.21439052]
[1742894676191,0.1731691,86934.0,86933.0,0.09937322]
[1742894676390,0.1731691,86934.0,86933.0,0.21439052]
[1742894684906,0.2051691,86934.0,86933.0,0.21439052]
[1742894687419,0.2051691,86934.0,86933.0,0.09937322]
[1742894687813,0.2051691,86934.0,86933.0,0.21439052]
[1742894693422,0.2051691,86934.0,86933.0,0.09937322]
[1742894693629,0.2051691,86934.0,86933.0,0.21239052]
[1742894693927,0.2051691,86934.0,86933.0,0.21339052]
[1742894694335,0.2051691,86934.0,86933.0,0.09837322]
[1742894694636,0.2051691,86934.0,86933.0,0.21239052]
[1742894694832,0.2051691,86934.0,86933.0,0.08678]
[1742894695032,0.2051691,86934.0,86933.0,0.002]
[1742894695234,0.1150278,86925.0,86924.0,0.0317]
[1742894695434,0.5875878,86925.0,86924.0,0.00068]
[1742894696039,0.66216623,86925.0,86924.0,0.00068]
[1742894696337,0.1150292,86924.0,86923.0,0.20537245]
[1742894696539,0.1461492,86924.0,86923.0,0.20605245]
[1742894696739,0.2090492,86924.0,86923.0,0.20605245]
[1742894698532,0.3200492,86924.0,86923.0,0.20605245]
[1742894699040,0.3200492,86924.0,86923.0,0.00068]
[1742894699227,0.1150371,86918.0,86917.0,0.07374061]
[1742894699428,0.1157171,86918.0,86917.0,0.08442061]
[1742894699634,0.1791171,86918.0,86917.0,0.08442061]
[1742894700433,0.1791171,86918.0,86917.0,0.08542061]
[1742894700835,0.1791171,86918.0,86911.0,0.00046024]
[1742894700836,0.0575209,86915.0,86911.0,0.00046024]
[1742894701133,0.0575209,86915.0,86906.0,0.0302]
[1742894701134,0.1150517,86907.0,86906.0,0.0302]
[1742894701336,0.115053,86906.0,86905.0,0.20601245]
[1742894701537,0.17693301,86906.0,86905.0,0.20669245]
[1742894701729,0.17693301,86906.0,86905.0,0.20605245]
[1742894701935,0.17693301,86906.0,86905.0,0.00068]
[1742894702941,0.17693301,86906.0,86905.0,0.00468]
[1742894703736,0.17693301,86906.0,86905.0,0.03498]
[1742894703940,0.28793301,86906.0,86905.0,0.06628]
[1742894704148,0.28793301,86906.0,86905.0,0.07028]
[1742894705243,0.28793301,86906.0,86905.0,0.0696]
[1742894706540,0.28793301,86906.0,86905.0,0.0383]
[1742894706743,0.28793301,86906.0,86897.0,0.00017254]
[1742894706744,0.0575291,86903.0,86898.0,0.064]
[1742894707047,0.0575291,86903.0,86871.0,0.4718]
[1742894707048,0.0575355,86893.0,86886.0,0.0332]
[1742894707243,0.1150782,86887.0,86886.0,0.094]
[1742894707444,0.1150795,86886.0,86885.0,0.20643718]
[1742894707743,0.1800795,86886.0,86885.0,0.20643718]
[1742894707943,0.1800795,86886.0,86880.0,0.0972]
[1742894707944,0.1150861,86881.0,86880.0,0.30303718]
[1742894708140,0.2261661,86881.0,86880.0,0.31303718]
[1742894708337,0.2261661,86881.0,86880.0,0.30303718]
[1742894708731,0.2897661,86881.0,86880.0,0.23693718]
[1742894709136,0.3220661,86881.0,86880.0,0.23893718]
[1742894709345,0.3220661,86881.0,86880.0,0.20783718]
[1742894710439,0.3220661,86881.0,86880.0,0.20983718]
[1742894711542,0.3220661,86881.0,86880.0,0.004]
[1742894712141,0.1150967,86873.0,86864.0,0.0086777]
[1742894712341,0.4758967,86873.0,86868.0,0.0646]
[1742894712554,0.47677671,86873.0,86868.0,0.0646]
[1742894713051,0.115102,86869.0,86868.0,0.0646]
[1742894713247,0.58794201,86869.0,86868.0,0.0646]
[1742894713553,0.58794201,86869.0,86868.0,0.0314]
[1742894714037,0.1151073,86865.0,86864.0,0.0332]
[1742894714242,0.11598731,86865.0,86864.0,0.0636]
[1742894714748,0.1151086,86864.0,86863.0,0.00046049]
[1742894714952,0.17938861,86864.0,86863.0,0.00046049]
[1742894716048,0.14678861,86864.0,86863.0,0.00046049]
[1742894716352,0.25778861,86864.0,86863.0,0.00046049]
[1742894716854,0.25778861,86864.0,86863.0,1.62757039]
[1742894716855,0.00088001,86864.0,86863.0,1.62757039]
[1742894717149,0.1160286,86864.0,86863.0,1.62817039]
[1742894717360,0.1160286,86864.0,86863.0,1.69317039]
[1742894717853,0.1160286,86864.0,86863.0,0.07806049]
[1742894718050,0.1160286,86864.0,86863.0,0.07746049]
[1742894718444,0.1160286,86864.0,86863.0,0.19317039]
[1742894719948,0.1160286,86864.0,86863.0,0.07806049]
[1742894721149,0.1160286,86864.0,86863.0,0.19317039]
[1742894723151,0.1160286,86864.0,86863.0,0.07806049]
[1742894723744,0.1160286,86864.0,86863.0,0.19317039]
[1742894724560,0.1160286,86864.0,86863.0,0.07806049]
[1742894726255,0.1160286,86864.0,86863.0,0.19317039]
[1742894727157,0.1160286,86864.0,86863.0,0.07806049]
[1742894727766,0.1160286,86864.0,86863.0,0.19317039]
[1742894729656,0.1160286,86864.0,86863.0,0.07806049]
[1742894730061,0.1792286,86864.0,86863.0,0.07806049]
[1742894731254,0.1488286,86864.0,86863.0,0.19317039]
[1742894731456,0.1160286,86864.0,86863.0,0.19317039]
[1742894736162,0.1160286,86864.0,86863.0,0.07806049]
[1742894737158,0.1160286,86864.0,86863.0,0.09309993]
[1742894737965,0.1160286,86864.0,86863.0,0.09311409]
[1742894738164,0.1490286,86864.0,86863.0,0.09311409]
[1742894739263,0.1490286,86864.0,86863.0,0.09211409]
[1742894739466,0.1490286,86864.0,86863.0,0.09411409]
[1742894739961,0.1490286,86864.0,86863.0,0.09313192]
[1742894740462,0.1490286,86864.0,86863.0,0.09213192]
[1742894740666,0.1490286,86864.0,86863.0,0.09313192]
[1742894741866,0.1160286,86864.0,86863.0,0.20824182]
[1742894742166,0.1151086,86864.0,86863.0,0.20824182]
[1742894742362,0.11606861,86864.0,86863.0,0.20724182]
[1742894742766,0.11606861,86864.0,86863.0,0.20824182]
[1742894744760,0.14876861,86864.0,86863.0,0.20824182]
[1742894745371,0.11606861,86864.0,86863.0,0.20824182]
[1742894745972,0.11606861,86864.0,86863.0,0.20833104]
[1742894746973,0.14686861,86864.0,86863.0,0.20833104]
[1742894748878,0.17686861,86864.0,86863.0,0.20833104]
[1742894751571,0.17686861,86864.0,86863.0,0.2083624]
[1742894752272,0.17686861,86864.0,86863.0,0.19317039]
[1742894752676,0.17686861,86864.0,86863.0,0.46849784]
[1742894752982,0.17686861,86864.0,86863.0,0.48368936]
[1742894756181,0.17686861,86864.0,86863.0,0.20836191]
[1742894756786,0.17686861,86864.0,86863.0,0.09325201]
[1742894757381,0.17686861,86864.0,86863.0,0.20836191]
[1742894758788,0.17686861,86864.0,86863.0,0.09325201]
[1742894759576,0.17686861,86864.0,86863.0,0.20836191]
[1742894760183,0.17686861,86864.0,86863.0,0.09325201]
[1742894760986,0.17686861,86864.0,86863.0,0.20831805]
[1742894761186,0.17686861,86864.0,86863.0,0.09320815]
[1742894761488,0.17686861,86864.0,86863.0,0.20831805]
[1742894762587,0.17686861,86864.0,86863.0,0.09320815]
[1742894762786,0.17686861,86864.0,86863.0,0.20823208]
[1742894763780,0.17686861,86864.0,86863.0,0.09312218]
[1742894764792,0.17686861,86864.0,86863.0,0.09316922]
[1742894764993,0.17686861,86864.0,86863.0,0.20827912]
[1742894765989,0.17686861,86864.0,86863.0,0.19317039]
[1742894766293,0.17686861,86864.0,86863.0,0.09320764]
[1742894766491,0.17686861,86864.0,86863.0,0.07806049]
[1742894766695,0.17686861,86864.0,86863.0,0.09320764]
[1742894766892,0.17686861,86864.0,86863.0,0.20831754]
[1742894767896,0.17686861,86864.0,86863.0,0.29978598]
[1742894769494,0.17686861,86864.0,86863.0,0.39974873]
[1742894770281,0.17686861,86864.0,86863.0,0.41481209]
[1742894773394,0.17686861,86864.0,86863.0,0.20823375]
[1742894782594,0.17686861,86864.0,86863.0,0.09312385]
[1742894783396,0.17686861,86864.0,86863.0,0.07806049]
[1742894785298,0.17686861,86864.0,86863.0,0.19317039]
[1742894785496,0.17686861,86864.0,86863.0,0.07806049]
[1742894785798,0.17686861,86864.0,86863.0,0.19317039]
[1742894787499,0.17686861,86864.0,86863.0,0.39983478]
[1742894791405,0.17686861,86864.0,86863.0,0.41463905]
[1742894791805,0.17686861,86864.0,86863.0,0.20797466]
[1742894792997,0.17686861,86864.0,86863.0,0.20801329]
[1742894794006,0.17686861,86864.0,86863.0,0.19317039]
[1742894795497,0.17686861,86864.0,86863.0,0.20813152]
[1742894796108,0.00096001,86864.0,86863.0,0.20813152]
[1742894796405,0.1726265,86883.0,86882.0,0.0575423]
[1742894796603,0.17322651,86883.0,86882.0,0.0575423]
[1742894796907,0.17322651,86883.0,86882.0,0.0688223]
[1742894797104,0.17322651,86883.0,86882.0,0.0681423]
[1742894797508,0.17322651,86883.0,86882.0,0.0982423]
[1742894797907,0.17622651,86883.0,86882.0,0.0982423]
[1742894798410,0.06114171,86883.0,86882.0,0.0982423]
[1742894798705,0.06114171,86883.0,86882.0,0.10995609]
[1742894799311,0.06514171,86883.0,86882.0,0.10995609]
[1742894799905,0.09694171,86883.0,86882.0,0.10995609]
[1742894801802,0.06514171,86883.0,86882.0,0.10995609]
[1742894802405,0.00760001,86883.0,86882.0,0.10995609]
[1742894803708,0.007,86883.0,86882.0,0.10995609]
[1742894803911,0.007,86883.0,86882.0,0.11995609]
[1742894804311,0.00764,86883.0,86882.0,0.11995609]
[1742894804815,0.007,86883.0,86882.0,0.11995609]
[1742894805317,0.00768,86883.0,86882.0,0.11995609]
[1742894805504,0.007,86883.0,86882.0,0.11995609]
[1742894807015,0.004,86883.0,86882.0,0.11995609]
[1742894807209,0.007,86883.0,86882.0,0.11995609]
[1742894808016,0.00760001,86883.0,86882.0,0.11995609]
[1742894808520,0.007,86883.0,86882.0,0.11995609]
[1742894810217,0.007,86883.0,86882.0,0.15085609]
[1742894811417,0.1150691,86897.0,86886.0,0.0575391]
[1742894811721,0.05813351,86897.0,86896.0,0.1150636]
[1742894812018,0.0575335,86897.0,86896.0,0.1156636]
[1742894812215,0.0575335,86897.0,86896.0,0.1459636]
[1742894812610,0.09543351,86897.0,86896.0,0.0309]
[1742894812805,0.12693351,86897.0,86896.0,0.0309]
[1742894813210,0.12693351,86897.0,86896.0,0.1459662]
[1742894813409,0.12993351,86897.0,86896.0,0.1459662]
[1742894813814,0.12993351,86897.0,86896.0,0.1786662]
[1742894814014,0.13293351,86897.0,86896.0,0.1786662]
[1742894814617,0.13293351,86897.0,86896.0,0.2108662]
[1742894818811,0.10143351,86897.0,86896.0,0.2108662]
[1742894819018,0.01160001,86897.0,86896.0,0.2108662]
[1742894819323,0.011,86897.0,86896.0,0.2108662]
[1742894819725,0.01160001,86897.0,86896.0,0.2108662]
[1742894819925,0.01160001,86897.0,86896.0,0.2208662]
[1742894820315,0.011,86897.0,86896.0,0.2208662]
[1742894820511,0.1260649,86897.0,86896.0,0.2208662]
[1742894820725,0.01160001,86897.0,86896.0,0.2208662]
[1742894821327,0.011,86897.0,86896.0,0.2208662]
[1742894821628,0.01160001,86897.0,86896.0,0.2208662]
[1742894822123,0.011,86897.0,86896.0,0.2208662]
[1742894822524,0.1154576,86904.0,86903.0,0.115057]
[1742894822720,0.11605761,86904.0,86903.0,0.189757]
[1742894822920,0.1485576,86904.0,86903.0,0.189757]
[1742894823119,0.14915761,86904.0,86903.0,0.189757]
[1742894823323,0.14915761,86904.0,86903.0,0.0415]
[1742894823520,0.14915761,86904.0,86903.0,0.01]
[1742894823722,0.15315761,86904.0,86903.0,0.125657]
[1742894824230,0.00500001,86904.0,86903.0,0.189657]
[1742894824829,0.12005561,86904.0,86903.0,0.189657]
[1742894825018,0.12005561,86904.0,86903.0,0.20127061]
[1742894825218,0.00500001,86904.0,86903.0,0.20127061]
[1742894825418,0.0044,86904.0,86903.0,0.20127061]
[1742894825624,0.00500001,86904.0,86903.0,0.20127061]
[1742894825928,0.00100001,86904.0,86903.0,0.20127061]
[1742894826127,0.00100001,86904.0,86903.0,0.20527061]
[1742894826517,0.0004,86904.0,86903.0,0.20527061]
[1742894827123,0.00100001,86904.0,86903.0,0.20527061]
[1742894827523,0.0004,86904.0,86903.0,0.20527061]
[1742894827922,0.00100001,86904.0,86903.0,0.20527061]
[1742894828329,0.0004,86904.0,86903.0,0.20527061]
[1742894828525,0.00100001,86904.0,86903.0,0.20527061]
[1742894828723,0.0004,86904.0,86903.0,0.20527061]
[1742894828921,8e-05,86907.0,86904.0,0.1150556]
[1742894829124,0.031,86918.0,86914.0,0.1150424]
[1742894829333,0.36140001,86915.0,86914.0,0.1156424]
[1742894829629,0.00060001,86915.0,86914.0,0.1356424]
[1742894829822,0.11564111,86915.0,86914.0,0.1963424]
[1742894830120,0.00060001,86915.0,86914.0,0.1963424]
[1742894830326,8e-05,86919.0,86918.0,0.1150371]
[1742894830522,0.00060001,86919.0,86918.0,0.4899185]
[1742894830735,0.0004,86920.0,86919.0,0.1150358]
[1742894831029,0.1154345,86920.0,86919.0,0.15061969]
[1742894831326,0.1154345,86920.0,86919.0,0.1977358]
[1742894831628,0.00100001,86920.0,86919.0,0.1977358]
[1742894831820,0.0004,86920.0,86919.0,0.2077358]
[1742894832023,0.0004,86920.0,86919.0,0.22265286]
[1742894832324,0.0004,86920.0,86919.0,0.2077358]
[1742894832939,0.0004,86920.0,86919.0,0.2117358]
[1742894833522,0.0004,86920.0,86919.0,0.2157358]
[1742894833829,0.00017264,86923.0,86922.0,0.1150318]
[1742894834135,0.00017264,86923.0,86922.0,0.2287318]
[1742894834934,0.00081264,86923.0,86922.0,0.2287318]
[1742894835229,0.00017264,86923.0,86922.0,0.2417318]
[1742894835835,0.0321,86934.0,86933.0,0.1150173]
[1742894836030,0.03270001,86934.0,86933.0,0.1256173]
[1742894836534,0.03270001,86934.0,86933.0,0.5794173]
[1742894836732,0.0004,86936.0,86935.0,0.1150146]
[1742894836931,0.0325,86936.0,86935.0,0.1256146]
[1742894837136,0.03318,86936.0,86935.0,0.1256146]
[1742894837431,0.1481933,86936.0,86935.0,0.1256146]
[1742894837631,0.03318,86936.0,86935.0,0.1256146]
[1742894837827,0.1475133,86936.0,86935.0,0.1256146]
[1742894838027,0.14811331,86936.0,86935.0,0.1256146]
[1742894838434,0.03310001,86936.0,86935.0,0.1256146]
[1742894838641,0.14811331,86936.0,86935.0,0.1256146]
[1742894838929,0.03310001,86936.0,86935.0,0.1256146]
[1742894839532,0.03310001,86936.0,86935.0,0.13727194]
[1742894839735,0.14811331,86936.0,86935.0,0.13727194]
[1742894839938,0.17811331,86936.0,86935.0,0.13727194]
[1742894841737,0.17811331,86936.0,86935.0,0.20067194]
[1742894842138,0.11601331,86936.0,86935.0,0.20067194]
[1742894842635,0.18051331,86936.0,86935.0,0.20067194]
[1742894853648,0.06550001,86936.0,86935.0,0.20067194]